[Event "Polofinale MCR junioru 2023"]
[Site "Czech Republic"]
[Date "2023.11.14"]
[Round "5.16"]
[White "Mrazek, Roman"]
[Black "Davidek, Zdenek"]
[Result "1/2-1/2"]
[TimeControl "90 min per 40 moves + 15 min + 30 sec / move from move 1"]
[WhiteFideId "23707062"]
[BlackFideId "23725001"]
[WhiteElo "1866"]
[BlackElo "2099"]

1. e4 {[%clk 01:30:57]} {[%emt 00:00:03]} c6 {[%clk 01:30:47]} {[%emt
00:00:13]} 2. d4 {[%clk 01:30:56]} {[%emt 00:00:30]} d5 {[%clk 01:31:12]}
{[%emt 00:00:05]} 3. exd5 {[%clk 01:31:16]} {[%emt 00:00:10]} cxd5 {[%clk
01:31:36]} {[%emt 00:00:06]} 4. c4 {[%clk 01:31:41]} {[%emt 00:00:05]} Nf6
{[%clk 01:31:58]} {[%emt 00:00:08]} 5. Nc3 {[%clk 01:32:06]} {[%emt 00:00:06]}
g6 {[%clk 01:32:08]} {[%emt 00:00:20]} 6. h3 {[%clk 01:31:48]} {[%emt
00:00:48]} Bg7 {[%clk 01:32:29]} {[%emt 00:00:09]} 7. Nf3 {[%clk 01:32:10]}
{[%emt 00:00:08]} O-O {[%clk 01:32:49]} {[%emt 00:00:09]} 8. Be3 {[%clk
01:32:16]} {[%emt 00:00:25]} Nc6 {[%clk 01:33:08]} {[%emt 00:00:11]} 9. Rc1
{[%clk 01:32:27]} {[%emt 00:00:19]} b6 {[%clk 01:33:12]} {[%emt 00:00:27]} 10.
Be2 {[%clk 01:29:50]} {[%emt 00:03:07]} Bb7 {[%clk 01:33:13]} {[%emt 00:00:29]}
11. O-O {[%clk 01:28:22]} {[%emt 00:01:58]} dxc4 {[%clk 01:33:03]} {[%emt
00:00:40]} 12. Bxc4 {[%clk 01:28:18]} {[%emt 00:00:34]} Rc8 {[%clk 01:33:23]}
{[%emt 00:00:10]} 13. Be2 {[%clk 01:26:40]} {[%emt 00:02:08]} Nd5 {[%clk
01:32:40]} {[%emt 00:01:12]} 14. Nxd5 {[%clk 01:25:57]} {[%emt 00:01:13]} Qxd5
{[%clk 01:33:05]} {[%emt 00:00:05]} 15. Bc4 {[%clk 01:25:38]} {[%emt 00:00:46]}
Qd6 {[%clk 01:31:41]} {[%emt 00:01:56]} 16. Qd2 {[%clk 01:23:50]} {[%emt
00:02:17]} Rfd8 {[%clk 01:12:43]} {[%emt 00:19:29]} 17. Rfd1 {[%clk 01:22:54]}
{[%emt 00:01:26]} Na5 {[%clk 00:49:17]} {[%emt 00:23:57]} 18. Be2 {[%clk
01:22:55]} {[%emt 00:00:27]} Rxc1 {[%clk 00:48:48]} {[%emt 00:01:00]} 19. Qxc1
{[%clk 01:22:00]} {[%emt 00:01:25]} Rc8 {[%clk 00:47:57]} {[%emt 00:01:21]} 20.
Qb1 {[%clk 01:19:22]} {[%emt 00:03:07]} Nc4 {[%clk 00:40:00]} {[%emt 00:08:28]}
21. Rc1 {[%clk 01:16:11]} {[%emt 00:03:41]} Nxe3 {[%clk 00:35:25]} {[%emt
00:05:05]} 22. Rxc8+ {[%clk 01:14:47]} {[%emt 00:01:54]} Bxc8 {[%clk 00:35:50]}
{[%emt 00:00:06]} 23. fxe3 {[%clk 01:13:17]} {[%emt 00:01:59]} Be6 {[%clk
00:30:27]} {[%emt 00:05:53]} 24. b3 {[%clk 01:10:55]} {[%emt 00:02:50]} a5
{[%clk 00:29:21]} {[%emt 00:01:38]} 25. Kf2 {[%clk 01:07:45]} {[%emt 00:03:38]}
Qc6 {[%clk 00:23:08]} {[%emt 00:06:46]} 26. Qd3 {[%clk 01:05:31]} {[%emt
00:02:41]} h6 {[%clk 00:16:26]} {[%emt 00:07:14]} 27. e4 {[%clk 00:56:31]}
{[%emt 00:09:29]} Qd6 {[%clk 00:15:56]} {[%emt 00:01:01]} 28. Qd2 {[%clk
00:54:42]} {[%emt 00:02:14]} Qc7 {[%clk 00:15:28]} {[%emt 00:01:03]} 29. Bb5
{[%clk 00:51:26]} {[%emt 00:03:45]} Kh7 {[%clk 00:14:23]} {[%emt 00:01:36]} 30.
Qd3 {[%clk 00:43:56]} {[%emt 00:07:58]} f5 {[%clk 00:10:08]} {[%emt 00:04:46]}
31. e5 {[%clk 00:42:31]} {[%emt 00:01:55]} Bd5 {[%clk 00:09:24]} {[%emt
00:01:15]} 32. Bc4 {[%clk 00:38:20]} {[%emt 00:04:40]} Be4 {[%clk 00:09:51]}
{[%emt 00:00:04]} 33. Qc3 {[%clk 00:37:45]} {[%emt 00:01:03]} Qc6 {[%clk
00:09:25]} {[%emt 00:00:58]} 34. a4 {[%clk 00:37:51]} {[%emt 00:00:23]} Bf8
{[%clk 00:04:15]} {[%emt 00:05:40]} 35. Qd2 {[%clk 00:29:18]} {[%emt 00:09:00]}
e6 {[%clk 00:04:07]} {[%emt 00:00:42]} 36. Bb5 {[%clk 00:29:18]} {[%emt
00:00:18]} Qc7 {[%clk 00:03:36]} {[%emt 00:01:13]} 37. Bc4 {[%clk 00:29:33]}
{[%emt 00:00:14]} Bb4 {[%clk 00:03:44]} {[%emt 00:00:23]} 38. Qe3 {[%clk
00:29:13]} {[%emt 00:00:46]} Qc6 {[%clk 00:04:03]} {[%emt 00:00:14]} 39. Kg1
{[%clk 00:27:10]} {[%emt 00:02:31]} Kg7 {[%clk 00:04:10]} {[%emt 00:00:27]} 40.
Kh2 {[%clk 00:26:34]} {[%emt 00:01:02]} Kh7 {[%clk 00:02:16]} {[%emt 00:02:27]}
41. h4 {[%clk 00:21:16]} {[%emt 00:05:48]} Kg7 {[%clk 00:01:13]} {[%emt
00:01:32]} 42. Qf2 {[%clk 00:19:12]} {[%emt 00:02:31]} Bc3 {[%clk 00:13:55]}
{[%emt 00:02:51]} 43. Qe3 {[%clk 00:34:03]} {[%emt 00:00:37]} Bb4 {[%clk
00:12:41]} {[%emt 00:01:46]} 44. Qf2 {[%clk 00:34:23]} {[%emt 00:00:10]} Bc3
{[%clk 00:08:27]} {[%emt 00:04:43]} 45. Qe3 {[%clk 00:34:46]} {[%emt 00:00:08]}
Bb4 {[%clk 00:08:45]} {[%emt 00:00:12]} 1/2-1/2

[Event "Polofinale MCR junioru 2023"]
[Site "Czech Republic"]
[Date "2023.11.14"]
[Round "5.17"]
[White "Kubiczek, Michal"]
[Black "Bednar, Milos"]
[Result "1-0"]
[TimeControl "90 min per 40 moves + 15 min + 30 sec / move from move 1"]
[WhiteFideId "23706996"]
[BlackFideId "23709812"]
[WhiteElo "2068"]
[BlackElo "1833"]

1. d4 {[%clk 01:30:55]} {[%emt 00:00:04]} d5 {[%clk 01:30:58]} {[%emt
00:00:03]} 2. c4 {[%clk 01:31:13]} {[%emt 00:00:11]} e6 {[%clk 01:31:17]}
{[%emt 00:00:12]} 3. Nf3 {[%clk 01:31:37]} {[%emt 00:00:05]} Nf6 {[%clk
01:31:40]} {[%emt 00:00:08]} 4. g3 {[%clk 01:31:55]} {[%emt 00:00:11]} c5
{[%clk 01:31:44]} {[%emt 00:00:27]} 5. cxd5 {[%clk 01:32:12]} {[%emt 00:00:13]}
exd5 {[%clk 01:30:52]} {[%emt 00:01:22]} 6. Bg2 {[%clk 01:32:33]} {[%emt
00:00:08]} Nc6 {[%clk 01:31:16]} {[%emt 00:00:07]} 7. O-O {[%clk 01:32:42]}
{[%emt 00:00:20]} Bf5 {[%clk 01:31:28]} {[%emt 00:00:18]} 8. Bg5 {[%clk
01:32:35]} {[%emt 00:00:36]} h6 {[%clk 01:19:29]} {[%emt 00:12:30]} 9. Bxf6
{[%clk 01:27:22]} {[%emt 00:05:43]} Qxf6 {[%clk 01:17:58]} {[%emt 00:02:01]} 10.
Nc3 {[%clk 01:24:28]} {[%emt 00:03:23]} O-O-O {[%clk 01:07:52]} {[%emt
00:10:36]} 11. dxc5 {[%clk 01:20:31]} {[%emt 00:04:27]} Bxc5 {[%clk 01:00:39]}
{[%emt 00:07:44]} 12. Rc1 {[%clk 01:17:11]} {[%emt 00:03:49]} d4 {[%clk
00:55:00]} {[%emt 00:06:09]} 13. Nb5 {[%clk 01:09:02]} {[%emt 00:08:39]} Bb6
{[%clk 00:54:16]} {[%emt 00:01:14]} 14. Qa4 {[%clk 01:05:10]} {[%emt 00:04:21]}
Kb8 {[%clk 00:52:28]} {[%emt 00:02:20]} 15. Nd2 {[%clk 00:59:11]} {[%emt
00:06:28]} Rhe8 {[%clk 00:44:07]} {[%emt 00:08:52]} 16. Nc4 {[%clk 00:58:26]}
{[%emt 00:01:14]} Ne5 {[%clk 00:33:13]} {[%emt 00:11:25]} 17. Na5 {[%clk
00:29:37]} {[%emt 00:29:19]} Re7 {[%clk 00:23:00]} {[%emt 00:10:44]} 18. Nc4
{[%clk 00:20:17]} {[%emt 00:09:50]} Nxc4 {[%clk 00:21:39]} {[%emt 00:01:50]} 19.
Qxc4 {[%clk 00:19:52]} {[%emt 00:00:55]} a6 {[%clk 00:20:28]} {[%emt 00:01:43]}
20. Na3 {[%clk 00:19:09]} {[%emt 00:01:13]} d3 {[%clk 00:19:33]} {[%emt
00:01:25]} 21. Qf4+ {[%clk 00:18:56]} {[%emt 00:00:42]} Bc7 {[%clk 00:19:35]}
{[%emt 00:00:28]} 22. Qb4 {[%clk 00:17:54]} {[%emt 00:01:32]} Bd6 {[%clk
00:19:54]} {[%emt 00:00:12]} 23. Qb6 {[%clk 00:18:22]} {[%emt 00:00:02]} Rde8
{[%clk 00:15:09]} {[%emt 00:05:15]} 24. exd3 {[%clk 00:16:05]} {[%emt
00:02:47]} Bxa3 {[%clk 00:14:08]} {[%emt 00:01:31]} 25. Qxf6 {[%clk 00:14:36]}
{[%emt 00:01:58]} gxf6 {[%clk 00:14:34]} {[%emt 00:00:05]} 26. bxa3 {[%clk
00:14:57]} {[%emt 00:00:09]} Bxd3 {[%clk 00:14:51]} {[%emt 00:00:13]} 27. Rfd1
{[%clk 00:15:12]} {[%emt 00:00:14]} Bf5 {[%clk 00:12:45]} {[%emt 00:02:35]} 28.
Bd5 {[%clk 00:14:00]} {[%emt 00:01:42]} Bh3 {[%clk 00:09:27]} {[%emt 00:03:49]}
29. Bg2 {[%clk 00:12:32]} {[%emt 00:01:58]} Be6 {[%clk 00:07:21]} {[%emt
00:02:36]} 30. Rd2 {[%clk 00:12:00]} {[%emt 00:01:02]} Bc8 {[%clk 00:06:28]}
{[%emt 00:01:23]} 31. h4 {[%clk 00:11:00]} {[%emt 00:01:30]} Re1+ {[%clk
00:05:48]} {[%emt 00:01:10]} 32. Rxe1 {[%clk 00:11:28]} {[%emt 00:00:02]} Rxe1+
{[%clk 00:06:14]} {[%emt 00:00:04]} 33. Kh2 {[%clk 00:11:49]} {[%emt 00:00:08]}
Be6 {[%clk 00:06:12]} {[%emt 00:00:33]} 34. Rb2 {[%clk 00:12:02]} {[%emt
00:00:17]} Bc8 {[%clk 00:06:13]} {[%emt 00:00:30]} 35. Bd5 {[%clk 00:11:24]}
{[%emt 00:01:07]} Re7 {[%clk 00:06:16]} {[%emt 00:00:27]} 36. Kg2 {[%clk
00:11:35]} {[%emt 00:00:19]} Rd7 {[%clk 00:05:27]} {[%emt 00:01:20]} 37. Be4
{[%clk 00:11:25]} {[%emt 00:00:40]} Rd4 {[%clk 00:05:10]} {[%emt 00:00:47]} 38.
Rb4 {[%clk 00:05:48]} {[%emt 00:06:07]} Rd2 {[%clk 00:04:51]} {[%emt 00:00:50]}
39. Rb6 {[%clk 00:06:13]} {[%emt 00:00:04]} Rxa2 {[%clk 00:04:12]} {[%emt
00:01:09]} 40. Rxf6 {[%clk 00:06:41]} {[%emt 00:00:02]} h5 {[%clk 00:02:35]}
{[%emt 00:02:07]} 41. Rf3 {[%clk 00:06:29]} {[%emt 00:00:41]} Be6 {[%clk
00:02:20]} {[%emt 00:00:47]} 42. Rc3 {[%clk 00:06:13]} {[%emt 00:00:45]} Bg4
{[%clk 00:01:30]} {[%emt 00:01:22]} 43. Bd5 {[%clk 00:06:08]} {[%emt 00:00:35]}
Ra1 {[%clk 00:01:27]} {[%emt 00:00:33]} 44. Bxf7 {[%clk 00:06:28]} {[%emt
00:00:09]} b6 {[%clk 00:15:10]} {[%emt 00:01:47]} 1-0

[Event "Polofinale MCR junioru 2023"]
[Site "Czech Republic"]
[Date "2023.11.14"]
[Round "5.18"]
[White "Siles, Jan"]
[Black "Hozda, Max"]
[Result "1/2-1/2"]
[TimeControl "90 min per 40 moves + 15 min + 30 sec / move from move 1"]
[WhiteClock "00:00:32"]
[BlackClock "00:00:08"]
[WhiteFideId "23715405"]
[BlackFideId "23725958"]
[WhiteElo "1829"]
[BlackElo "2045"]

1. d4 {[%clk 01:30:58]} {[%emt 00:00:01]} d5 {[%clk 01:27:24]} {[%emt
00:03:36]} 2. c4 {[%clk 01:31:23]} {[%emt 00:00:06]} c6 {[%clk 01:27:49]}
{[%emt 00:00:06]} 3. Nc3 {[%clk 01:31:48]} {[%emt 00:00:05]} Nf6 {[%clk
01:28:13]} {[%emt 00:00:04]} 4. cxd5 {[%clk 01:32:12]} {[%emt 00:00:07]} cxd5
{[%clk 01:28:23]} {[%emt 00:00:20]} 5. Bf4 {[%clk 01:32:33]} {[%emt 00:00:08]}
Nc6 {[%clk 01:24:31]} {[%emt 00:04:23]} 6. e3 {[%clk 01:32:38]} {[%emt
00:00:25]} Bf5 {[%clk 01:18:08]} {[%emt 00:06:52]} 7. Qb3 {[%clk 01:32:49]}
{[%emt 00:00:19]} Na5 {[%clk 01:17:41]} {[%emt 00:00:58]} 8. Qa4+ {[%clk
01:33:13]} {[%emt 00:00:07]} Bd7 {[%clk 01:12:28]} {[%emt 00:05:42]} 9. Qc2
{[%clk 01:33:33]} {[%emt 00:00:09]} Rc8 {[%clk 01:10:41]} {[%emt 00:02:17]} 10.
Bd3 {[%clk 01:32:41]} {[%emt 00:01:23]} e6 {[%clk 01:08:34]} {[%emt 00:02:36]}
11. a3 {[%clk 01:29:46]} {[%emt 00:03:25]} Be7 {[%clk 01:07:03]} {[%emt
00:02:01]} 12. Nf3 {[%clk 01:28:10]} {[%emt 00:02:05]} Qb6 {[%clk 01:01:50]}
{[%emt 00:05:44]} 13. Qe2 {[%clk 01:22:29]} {[%emt 00:06:11]} Nb3 {[%clk
00:56:24]} {[%emt 00:05:57]} 14. Rb1 {[%clk 01:12:13]} {[%emt 00:10:47]} a6
{[%clk 00:48:30]} {[%emt 00:08:24]} 15. O-O {[%clk 01:03:55]} {[%emt 00:08:46]}
O-O {[%clk 00:45:31]} {[%emt 00:03:29]} 16. Ne5 {[%clk 00:55:15]} {[%emt
00:09:10]} Be8 {[%clk 00:43:06]} {[%emt 00:02:55]} 17. g4 {[%clk 00:51:38]}
{[%emt 00:04:07]} Nd7 {[%clk 00:34:46]} {[%emt 00:08:50]} 18. Nf3 {[%clk
00:43:06]} {[%emt 00:09:01]} Nb8 {[%clk 00:31:16]} {[%emt 00:04:00]} 19. Bc2
{[%clk 00:38:59]} {[%emt 00:04:38]} f6 {[%clk 00:21:27]} {[%emt 00:10:19]} 20.
h4 {[%clk 00:35:42]} {[%emt 00:03:47]} Na5 {[%clk 00:20:02]} {[%emt 00:01:55]}
21. h5 {[%clk 00:32:24]} {[%emt 00:03:49]} Bd6 {[%clk 00:18:34]} {[%emt
00:01:58]} 22. Qd3 {[%clk 00:20:13]} {[%emt 00:12:41]} f5 {[%clk 00:14:54]}
{[%emt 00:04:08]} 23. gxf5 {[%clk 00:13:17]} {[%emt 00:07:27]} Bxh5 {[%clk
00:15:19]} {[%emt 00:00:05]} 24. Ng5 {[%clk 00:12:09]} {[%emt 00:01:38]} Rxf5
{[%clk 00:11:23]} {[%emt 00:04:26]} 25. Nxe6 {[%clk 00:10:04]} {[%emt
00:02:36]} Bg6 {[%clk 00:11:31]} {[%emt 00:00:21]} 26. Qe2 {[%clk 00:09:16]}
{[%emt 00:01:18]} Bxf4 {[%clk 00:09:40]} {[%emt 00:02:21]} 27. Bxf5 {[%clk
00:08:24]} {[%emt 00:01:22]} Bh2+ {[%clk 00:08:24]} {[%emt 00:01:46]} 28. Kxh2
{[%clk 00:07:47]} {[%emt 00:01:08]} Bxf5 {[%clk 00:08:46]} {[%emt 00:00:08]} 29.
Nf4 {[%clk 00:06:45]} {[%emt 00:01:32]} Rc6 {[%clk 00:07:47]} {[%emt 00:01:29]}
30. Ncxd5 {[%clk 00:03:08]} {[%emt 00:04:07]} Rh6+ {[%clk 00:07:58]} {[%emt
00:00:19]} 31. Kg1 {[%clk 00:02:52]} {[%emt 00:00:46]} Qd8 {[%clk 00:05:48]}
{[%emt 00:02:40]} 32. f3 {[%clk 00:02:09]} {[%emt 00:01:13]} Bxb1 {[%clk
00:04:38]} {[%emt 00:01:40]} 33. Rxb1 {[%clk 00:02:19]} {[%emt 00:00:20]} g5
{[%clk 00:04:50]} {[%emt 00:00:18]} 34. Qg2 {[%clk 00:00:41]} {[%emt 00:02:08]}
Kh8 {[%clk 00:05:05]} {[%emt 00:00:15]} 35. Rc1 {[%clk 00:00:37]} {[%emt
00:00:34]} Nac6 {[%clk 00:05:02]} {[%emt 00:00:33]} 36. Rc5 {[%clk 00:00:35]}
{[%emt 00:00:32]} gxf4 {[%clk 00:05:23]} {[%emt 00:00:08]} 37. Nxf4 {[%clk
00:00:53]} {[%emt 00:00:12]} Qh4 {[%clk 00:03:53]} {[%emt 00:02:01]} 38. Kf1
{[%clk 00:01:22]} {[%emt 00:00:01]} Nd7 {[%clk 00:03:30]} {[%emt 00:00:52]} 39.
Rd5 {[%clk 00:01:04]} {[%emt 00:00:49]} Qe7 {[%clk 00:01:24]} {[%emt 00:02:36]}
40. Kf2 {[%clk 00:00:37]} {[%emt 00:00:57]} Qh4+ {[%clk 00:00:35]} {[%emt
00:01:20]} 41. Ke2 {[%clk 00:14:47]} {[%emt 00:01:20]} Nf6 {[%clk 00:05:45]}
{[%emt 00:10:20]} 42. Rc5 {[%clk 00:10:17]} {[%emt 00:05:00]} Nh5 {[%clk
00:04:16]} {[%emt 00:01:59]} 43. Rxh5 {[%clk 00:05:09]} {[%emt 00:05:38]} Rxh5
{[%clk 00:04:28]} {[%emt 00:00:19]} 44. Nxh5 {[%clk 00:05:27]} {[%emt
00:00:11]} Qxh5 {[%clk 00:04:52]} {[%emt 00:00:06]} 45. Qg3 {[%clk 00:05:14]}
{[%emt 00:00:43]} Qf7 {[%clk 00:04:07]} {[%emt 00:01:14]} 46. Qg5 {[%clk
00:02:54]} {[%emt 00:02:50]} Qg6 {[%clk 00:03:22]} {[%emt 00:01:15]} 47. Qxg6
{[%clk 00:02:19]} {[%emt 00:01:05]} hxg6 {[%clk 00:03:50]} {[%emt 00:00:01]} 48.
d5 {[%clk 00:02:04]} {[%emt 00:00:46]} Ne7 {[%clk 00:02:49]} {[%emt 00:01:32]}
49. e4 {[%clk 00:01:27]} {[%emt 00:01:07]} Kg7 {[%clk 00:02:48]} {[%emt
00:00:30]} 50. Ke3 {[%clk 00:00:49]} {[%emt 00:01:08]} Kf6 {[%clk 00:02:29]}
{[%emt 00:00:50]} 51. f4 {[%clk 00:00:44]} {[%emt 00:00:35]} Nc8 {[%clk
00:02:06]} {[%emt 00:00:52]} 52. b4 {[%clk 00:00:34]} {[%emt 00:00:40]} Nb6
{[%clk 00:01:52]} {[%emt 00:00:45]} 53. Kd4 {[%clk 00:00:42]} {[%emt 00:00:22]}
Nd7 {[%clk 00:02:19]} {[%emt 00:00:03]} 54. e5+ {[%clk 00:00:36]} {[%emt
00:00:36]} Ke7 {[%clk 00:01:33]} {[%emt 00:01:16]} 55. a4 {[%clk 00:00:35]}
{[%emt 00:00:32]} Nb6 {[%clk 00:00:36]} {[%emt 00:01:27]} 56. a5 {[%clk
00:00:43]} {[%emt 00:00:21]} Nd7 {[%clk 00:00:55]} {[%emt 00:00:11]} 57. Ke4
{[%clk 00:00:32]} {[%emt 00:00:41]} 1/2-1/2

[Event "Polofinale MCR junioru 2023"]
[Site "Czech Republic"]
[Date "2023.11.14"]
[Round "5.19"]
[White "Roubal, Matyas"]
[Black "Mametev, Artem"]
[Result "1/2-1/2"]
[TimeControl "90 min per 40 moves + 15 min + 30 sec / move from move 1"]
[WhiteFideId "23727152"]
[BlackFideId "23710195"]
[WhiteElo "1837"]
[BlackElo "2024"]

1. e4 {[%clk 01:30:58]} {[%emt 00:00:01]} c5 {[%clk 01:23:45]} {[%emt
00:07:16]} 2. Nf3 {[%clk 01:31:18]} {[%emt 00:00:09]} d6 {[%clk 01:24:11]}
{[%emt 00:00:05]} 3. d4 {[%clk 01:31:45]} {[%emt 00:00:04]} cxd4 {[%clk
01:24:37]} {[%emt 00:00:03]} 4. Nxd4 {[%clk 01:32:11]} {[%emt 00:00:04]} Nf6
{[%clk 01:24:56]} {[%emt 00:00:11]} 5. Nc3 {[%clk 01:32:37]} {[%emt 00:00:04]}
a6 {[%clk 01:25:17]} {[%emt 00:00:09]} 6. Nb3 {[%clk 01:32:33]} {[%emt
00:00:34]} e6 {[%clk 01:25:04]} {[%emt 00:00:43]} 7. g4 {[%clk 01:32:59]}
{[%emt 00:00:04]} h6 {[%clk 01:24:29]} {[%emt 00:01:05]} 8. Bg2 {[%clk
01:31:21]} {[%emt 00:02:08]} Be7 {[%clk 01:24:44]} {[%emt 00:00:15]} 9. Be3
{[%clk 01:30:59]} {[%emt 00:00:52]} Nc6 {[%clk 01:24:10]} {[%emt 00:01:03]} 10.
Qe2 {[%clk 01:28:37]} {[%emt 00:02:52]} Qc7 {[%clk 01:20:14]} {[%emt 00:04:26]}
11. f4 {[%clk 01:26:48]} {[%emt 00:02:19]} b6 {[%clk 01:09:00]} {[%emt
00:11:44]} 12. O-O-O {[%clk 01:24:14]} {[%emt 00:03:04]} Bb7 {[%emt 00:13:04]}
13. h4 {[%clk 01:12:20]} Nd7 {[%clk 01:04:57]} {[%emt 00:04:21]} 14. g5 {[%clk
01:10:40]} {[%emt 00:02:10]} b5 {[%clk 00:50:20]} {[%emt 00:15:07]} 15. g6
{[%clk 01:06:01]} {[%emt 00:05:09]} fxg6 {[%clk 00:49:40]} {[%emt 00:01:10]} 16.
Qg4 {[%clk 01:02:46]} {[%emt 00:03:45]} Nf8 {[%clk 00:47:10]} {[%emt 00:02:59]}
17. f5 {[%clk 00:54:17]} {[%emt 00:08:59]} Ne5 {[%clk 00:44:28]} {[%emt
00:03:12]} 18. Qg3 {[%clk 00:53:52]} {[%emt 00:00:54]} b4 {[%clk 00:43:43]}
{[%emt 00:01:15]} 19. Ne2 {[%clk 00:53:15]} {[%emt 00:01:07]} Nc4 {[%clk
00:34:55]} {[%emt 00:09:19]} 20. Bf2 {[%clk 00:51:20]} {[%emt 00:02:25]} e5
{[%clk 00:26:45]} {[%emt 00:08:40]} 21. fxg6 {[%clk 00:49:27]} {[%emt
00:02:23]} a5 {[%clk 00:26:26]} {[%emt 00:00:50]} 22. Qf3 {[%clk 00:45:59]}
{[%emt 00:03:58]} Bf6 {[%clk 00:24:00]} {[%emt 00:02:56]} 23. Nd2 {[%clk
00:44:44]} {[%emt 00:01:45]} Rc8 {[%clk 00:21:41]} {[%emt 00:02:49]} 24. Qb3
{[%clk 00:42:32]} {[%emt 00:02:42]} Nxg6 {[%clk 00:14:03]} {[%emt 00:08:08]} 25.
Nxc4 {[%clk 00:34:37]} {[%emt 00:08:25]} Qxc4 {[%clk 00:14:24]} {[%emt
00:00:09]} 26. Qxc4 {[%clk 00:34:21]} {[%emt 00:00:47]} Rxc4 {[%clk 00:14:53]}
27. Rxd6 {[%clk 00:33:16]} {[%emt 00:01:34]} Bxe4 {[%clk 00:14:49]} {[%emt
00:00:34]} 28. Bxe4 {[%clk 00:33:28]} {[%emt 00:00:19]} Rxe4 {[%clk 00:15:18]}
{[%emt 00:00:01]} 29. Ng3 {[%clk 00:33:34]} {[%emt 00:00:24]} Rxh4 {[%clk
00:14:26]} {[%emt 00:01:22]} 30. Rxh4 {[%clk 00:33:40]} {[%emt 00:00:25]} Nxh4
{[%clk 00:14:15]} {[%emt 00:00:41]} 31. Ne4 {[%clk 00:33:24]} {[%emt 00:00:46]}
Nf5 {[%clk 00:07:52]} {[%emt 00:06:52]} 32. Ra6 {[%clk 00:32:39]} {[%emt
00:01:16]} O-O {[%clk 00:07:12]} {[%emt 00:01:09]} 33. Rxa5 {[%clk 00:32:21]}
{[%emt 00:00:49]} Rc8 {[%clk 00:05:15]} {[%emt 00:02:27]} 34. Bc5 {[%clk
00:31:15]} {[%emt 00:01:36]} h5 {[%clk 00:04:53]} {[%emt 00:00:52]} 35. Bxb4
{[%clk 00:30:26]} {[%emt 00:01:19]} h4 {[%clk 00:05:00]} {[%emt 00:00:23]} 36.
Ra3 {[%clk 00:30:27]} {[%emt 00:00:29]} Nd4 {[%clk 00:04:56]} {[%emt 00:00:34]}
37. Bc5 {[%clk 00:28:13]} {[%emt 00:02:44]} Rd8 {[%clk 00:02:45]} {[%emt
00:02:41]} 38. Nxf6+ {[%clk 00:27:26]} {[%emt 00:01:18]} gxf6 {[%clk 00:03:09]}
{[%emt 00:00:06]} 39. Bxd4 {[%clk 00:27:55]} {[%emt 00:00:01]} Rxd4 {[%clk
00:03:31]} {[%emt 00:00:09]} 40. Rh3 {[%clk 00:28:02]} {[%emt 00:00:22]} Kf7
{[%clk 00:03:17]} {[%emt 00:00:44]} 41. c3 {[%clk 00:26:39]} {[%emt 00:01:53]}
Ra4 {[%clk 00:01:52]} {[%emt 00:01:54]} 42. b4 {[%clk 00:26:42]} {[%emt
00:00:27]} Rxa2 {[%clk 00:01:18]} {[%emt 00:01:04]} 43. Rxh4 {[%clk 00:26:55]}
{[%emt 00:00:17]} Ke6 {[%clk 00:01:40]} {[%emt 00:00:08]} 44. b5 {[%clk
00:27:01]} {[%emt 00:00:24]} Kd6 {[%clk 00:00:49]} {[%emt 00:01:21]} 45. Rc4
{[%clk 00:26:31]} {[%emt 00:01:00]} f5 {[%clk 00:13:08]} {[%emt 00:03:11]} 46.
Rc6+ {[%clk 00:39:31]} {[%emt 00:02:30]} Kd7 {[%clk 00:08:44]} {[%emt
00:04:54]} 47. Rc5 {[%clk 00:39:47]} {[%emt 00:00:15]} Kd6 {[%clk 00:09:04]}
{[%emt 00:00:09]} 48. Rc6+ {[%clk 00:40:16]} {[%emt 00:00:01]} Kd7 {[%clk
00:02:21]} {[%emt 00:07:13]} 1/2-1/2

[Event "Polofinale MCR junioru 2023"]
[Site "Czech Republic"]
[Date "2023.11.14"]
[Round "5.20"]
[White "Sprinar, Michal"]
[Black "Rousek, Jan"]
[Result "1/2-1/2"]
[TimeControl "90 min per 40 moves + 15 min + 30 sec / move from move 1"]
[WhiteFideId "23714190"]
[BlackFideId "386669"]
[WhiteElo "1742"]
[BlackElo "2006"]

1. e4 {[%clk 01:30:58]} {[%emt 00:00:01]} c5 {[%clk 01:30:50]} {[%emt
00:00:10]} 2. Nf3 {[%clk 01:31:25]} {[%emt 00:00:04]} e6 {[%clk 01:31:14]}
{[%emt 00:00:05]} 3. d4 {[%clk 01:31:52]} {[%emt 00:00:04]} cxd4 {[%clk
01:31:38]} {[%emt 00:00:05]} 4. Nxd4 {[%clk 01:32:19]} {[%emt 00:00:04]} Nf6
{[%clk 01:31:54]} {[%emt 00:00:12]} 5. Nc3 {[%clk 01:32:44]} {[%emt 00:00:06]}
Nc6 {[%clk 01:32:19]} {[%emt 00:00:04]} 6. Ndb5 {[%clk 01:33:02]} {[%emt
00:00:12]} d6 {[%clk 01:31:18]} {[%emt 00:01:32]} 7. Bf4 {[%clk 01:30:12]}
{[%emt 00:03:19]} e5 {[%clk 01:31:18]} {[%emt 00:00:32]} 8. Bg5 {[%clk
01:30:35]} {[%emt 00:00:07]} a6 {[%clk 01:31:14]} {[%emt 00:00:33]} 9. Na3
{[%clk 01:31:00]} {[%emt 00:00:05]} b5 {[%clk 01:31:21]} {[%emt 00:00:23]} 10.
Nd5 {[%clk 01:31:15]} {[%emt 00:00:15]} Be7 {[%clk 01:31:27]} {[%emt 00:00:23]}
11. Bxf6 {[%clk 01:31:41]} {[%emt 00:00:05]} Bxf6 {[%clk 01:31:36]} {[%emt
00:00:20]} 12. c4 {[%clk 01:31:52]} {[%emt 00:00:19]} b4 {[%clk 01:02:56]}
{[%emt 00:29:11]} 13. Nc2 {[%clk 01:32:15]} {[%emt 00:00:07]} a5 {[%clk
00:58:29]} {[%emt 00:04:56]} 14. b3 {[%clk 01:32:21]} {[%emt 00:00:25]} O-O
{[%clk 00:56:59]} {[%emt 00:01:58]} 15. g3 {[%clk 01:31:56]} {[%emt 00:00:55]}
Bg5 {[%clk 00:50:10]} {[%emt 00:07:19]} 16. Bg2 {[%clk 01:32:02]} {[%emt
00:00:25]} Rb8 {[%clk 00:49:42]} {[%emt 00:00:58]} 17. O-O {[%clk 01:32:23]}
{[%emt 00:00:09]} f5 {[%clk 00:49:05]} {[%emt 00:01:07]} 18. exf5 {[%clk
01:28:57]} {[%emt 00:03:56]} Bxf5 {[%clk 00:47:39]} {[%emt 00:01:55]} 19. Nde3
{[%clk 01:22:29]} {[%emt 00:06:59]} Ne7 {[%clk 00:38:05]} {[%emt 00:10:03]} 20.
Nxf5 {[%clk 01:21:30]} {[%emt 00:01:31]} Nxf5 {[%clk 00:37:15]} {[%emt
00:01:19]} 21. Be4 {[%clk 01:18:27]} {[%emt 00:03:33]} Kh8 {[%clk 00:29:59]}
{[%emt 00:07:47]} 22. Qd3 {[%clk 01:16:20]} {[%emt 00:02:35]} g6 {[%clk
00:29:44]} {[%emt 00:00:46]} 23. Rad1 {[%clk 01:15:16]} {[%emt 00:01:34]} Be7
{[%clk 00:28:10]} {[%emt 00:02:04]} 24. Qd5 {[%clk 00:40:39]} {[%emt 00:34:59]}
1/2-1/2